bitfinex-derivatives/quotes_BTCF0:USTF0_20251118
["timestamp","ask_amount","ask_price","bid_price","bid_amount"]
[1763472219984,0.04759,91452.0,91451.0,0.00016404]
[1763472220184,0.04559,91437.0,91436.0,0.04466]
[1763472220388,0.04559,91437.0,91436.0,0.02262]
[1763472220794,0.04559,91437.0,91436.0,0.04466]
[1763472222887,0.03925478,91444.0,91440.0,0.00219803]
[1763472223095,0.03925478,91444.0,91443.0,0.04466]
[1763472223399,0.04559,91445.0,91444.0,0.04466]
[1763472225998,0.04659,91445.0,91444.0,0.04466]
[1763472227502,0.02401,91445.0,91444.0,0.04466]
[1763472227703,0.04659,91445.0,91444.0,0.04466]
[1763472229505,0.04559,91441.0,91440.0,0.06063803]
[1763472231301,0.04659,91441.0,91440.0,0.06063803]
[1763472232410,0.02401,91441.0,91440.0,0.06063803]
[1763472232607,0.001,91441.0,91440.0,0.06063803]
[1763472233808,0.04659,91441.0,91440.0,0.06063803]
[1763472234015,0.04659,91441.0,91440.0,0.04685803]
[1763472236212,0.02401,91441.0,91440.0,0.04685803]
[1763472236415,0.001,91441.0,91440.0,0.04685803]
[1763472236803,0.04659,91441.0,91440.0,0.04685803]
[1763472239012,0.04634,91441.0,91440.0,0.04685803]
[1763472239714,0.02271,91441.0,91440.0,0.04685803]
[1763472239903,0.04504,91441.0,91440.0,0.04685803]
[1763472240507,0.001,91441.0,91440.0,0.04685803]
[1763472240710,0.08329478,91459.0,91458.0,0.04402]
[1763472240905,0.04404,91459.0,91458.0,0.04402]
[1763472241915,0.04604,91459.0,91458.0,0.04402]
[1763472243411,0.04704,91459.0,91458.0,0.04402]
[1763472245012,4.04e-06,91461.0,91460.0,0.04621803]
[1763472245220,0.04404,91477.0,91476.0,0.05745]
[1763472247611,0.04504,91477.0,91476.0,0.05745]
[1763472247810,0.04704,91477.0,91476.0,0.05745]
[1763472248208,0.002,91477.0,91476.0,0.1668885]
[1763472248407,0.00043731,91486.0,91485.0,0.04402]
[1763472249212,0.04447731,91486.0,91485.0,0.04402]
[1763472249914,0.04547731,91486.0,91485.0,0.04402]
[1763472250518,0.04647731,91486.0,91485.0,0.04402]
[1763472250917,0.04404,91481.0,91480.0,0.00219803]
[1763472251214,0.00243731,91486.0,91467.0,0.00016404]
[1763472251215,0.04404,91468.0,91467.0,0.00016404]
[1763472251413,0.04404,91449.0,91448.0,0.05745]
[1763472251809,0.04404,91449.0,91448.0,0.04402]
[1763472253915,0.02171,91449.0,91448.0,0.04402]
[1763472254114,0.02171,91449.0,91440.0,0.01343]
[1763472254115,0.04404,91451.0,91450.0,0.04621803]
[1763472254310,0.04404,91451.0,91450.0,0.02400803]
[1763472254715,0.04404,91451.0,91450.0,0.04621803]
[1763472255327,0.04404,91451.0,91450.0,0.02400803]
[1763472257025,0.04404,91451.0,91450.0,0.04621803]
[1763472257513,0.02171,91451.0,91450.0,0.04621803]
[1763472257719,0.04420404,91458.0,91457.0,0.04402]
[1763472258218,0.00016404,91458.0,91457.0,0.04402]
[1763472258417,0.04420404,91458.0,91457.0,0.04402]
[1763472259624,0.04520404,91458.0,91457.0,0.04402]
[1763472260327,0.04620404,91458.0,91457.0,0.04402]
[1763472260918,0.00216404,91458.0,91457.0,0.04402]
[1763472261820,0.02408404,91458.0,91457.0,0.04402]
[1763472262226,0.04532404,91458.0,91457.0,0.04402]
[1763472264424,0.00216404,91458.0,91457.0,0.04402]
[1763472265120,0.04532404,91458.0,91449.0,0.01343]
[1763472265320,0.04532404,91458.0,91441.0,0.03933647]
[1763472265321,0.04316,91442.0,91441.0,0.0429]
[1763472265528,0.00216404,91458.0,91441.0,0.0429]
[1763472265723,0.04316,91451.0,91450.0,0.04509803]
[1763472267326,0.04435,91441.0,91440.0,0.05677]
[1763472267528,0.04435,91441.0,91440.0,0.04600803]
[1763472267725,0.22079434,91450.0,91439.0,0.00016404]
[1763472267726,0.04435,91440.0,91439.0,0.00016404]
[1763472267934,0.05368,91440.0,91439.0,0.00016404]
[1763472268822,0.04435,91431.0,91430.0,0.02385803]
[1763472269022,0.04435,91431.0,91430.0,0.04600803]
[1763472269624,0.04435,91431.0,91430.0,0.04807152]
[1763472270133,0.05368,91431.0,91430.0,0.00206349]
[1763472271231,0.04435,91422.0,91421.0,0.04397404]
[1763472272433,0.04435,91422.0,91421.0,0.02182404]
[1763472272735,0.04435,91422.0,91421.0,0.04397404]
[1763472272934,0.04435,91422.0,91421.0,0.04497404]
[1763472274427,0.00949404,91440.0,91422.0,0.01382]
[1763472274627,0.04435,91431.0,91430.0,0.04600803]
[1763472274830,0.04435,91431.0,91430.0,0.00219803]
[1763472275333,0.04435,91422.0,91421.0,0.04497404]
[1763472275836,0.04435,91422.0,91421.0,0.04397404]
[1763472276043,0.04335,91422.0,91421.0,0.04397404]
[1763472276331,0.04335,91422.0,91421.0,0.00016404]
[1763472277730,0.04335,91422.0,91420.0,0.00219803]
[1763472277936,0.04435,91421.0,91420.0,0.00219803]
[1763472278439,0.04535,91431.0,91430.0,0.04381]
[1763472278733,0.04435,91431.0,91430.0,0.02166]
[1763472279047,0.04435,91425.0,91424.0,0.05763]
[1763472279430,0.04435,91425.0,91424.0,0.04381]
[1763472279629,0.04435,91425.0,91424.0,0.02166]
[1763472279830,0.04435,91421.0,91420.0,0.04600803]
[1763472280031,0.04435,91421.0,91420.0,0.00219803]
[1763472280739,0.04654803,91420.0,91408.0,0.01382]
[1763472280928,0.04654803,91420.0,91410.0,0.00072842]
[1763472281429,0.04435,91411.0,91410.0,0.00072842]
[1763472281825,0.04435,91411.0,91410.0,0.02238842]
[1763472282036,0.04435,91411.0,91410.0,0.04453842]
[1763472282232,0.04435,91411.0,91410.0,0.02238842]
[1763472282426,0.04435,91411.0,91410.0,0.04453842]
[1763472283734,0.26539096,91420.0,91419.0,0.04381]
[1763472283939,0.04679465,91420.0,91419.0,0.04381]
[1763472284334,0.04679465,91420.0,91419.0,0.02166]
[1763472284536,0.02224,91409.0,91408.0,0.05763]
[1763472284735,0.04443258,91409.0,91408.0,0.05763]
[1763472284935,0.02232258,91409.0,91408.0,0.05763]
[1763472285133,8.258e-05,91409.0,91408.0,0.05763]
[1763472286935,0.00016404,91420.0,91419.0,0.04381]
[1763472288744,0.08360478,91441.0,91440.0,0.05763]
[1763472288938,0.04435,91441.0,91440.0,0.05835842]
[1763472289136,0.02224,91441.0,91440.0,0.05835842]
[1763472289445,0.05550448,91448.0,91447.0,0.04381]
[1763472289655,0.01115448,91448.0,91447.0,0.04381]
[1763472289843,0.00219803,91450.0,91449.0,0.04381]
[1763472292446,0.04654803,91450.0,91449.0,0.04381]
[1763472294141,0.04754803,91450.0,91449.0,0.04381]
[1763472294742,0.04754803,91450.0,91449.0,0.02166]
[1763472295042,0.04854803,91450.0,91449.0,0.02166]
[1763472295238,0.04854803,91450.0,91449.0,0.04381]
[1763472295446,0.04854803,91450.0,91449.0,0.05763]
[1763472296451,0.04754803,91450.0,91449.0,0.05763]
[1763472296640,0.04854803,91450.0,91449.0,0.05763]
[1763472297746,0.00419803,91450.0,91449.0,0.05763]
[1763472300149,0.02584803,91450.0,91449.0,0.05763]
[1763472300454,0.00419803,91450.0,91449.0,0.05763]
[1763472300652,0.04763803,91450.0,91449.0,0.05763]
[1763472300852,0.02584803,91450.0,91449.0,0.05763]
[1763472301547,0.00419803,91450.0,91449.0,0.05763]
[1763472301748,0.02584803,91450.0,91449.0,0.05763]
[1763472302454,0.00419803,91450.0,91449.0,0.05763]
[1763472303155,0.00016404,91457.0,91456.0,0.05794]
[1763472304851,0.00116404,91457.0,91456.0,0.05794]
[1763472305357,0.00216404,91457.0,91456.0,0.05794]
[1763472305762,0.00216404,91457.0,91449.0,0.01382]
[1763472305763,0.04344,91450.0,91449.0,0.05789]
[1763472305952,0.04563803,91450.0,91449.0,0.04407]
[1763472306153,0.04344,91441.0,91440.0,0.05789]
[1763472306348,0.04344,91439.0,91438.0,0.00016404]
[1763472306763,0.04344,91439.0,91438.0,0.04423404]
[1763472308556,0.00219803,91440.0,91439.0,0.04407]
[1763472308954,0.04563803,91440.0,91439.0,0.04407]
[1763472309159,0.04344,91439.0,91438.0,0.00016404]
[1763472309356,0.04344,91439.0,91438.0,0.02321404]
[1763472310455,0.04344,91439.0,91438.0,0.04423404]
[1763472311062,0.04563803,91440.0,91439.0,0.04407]
[1763472311460,0.02384803,91440.0,91439.0,0.04407]
[1763472311765,0.00219803,91440.0,91439.0,0.04407]
[1763472311965,0.04563803,91440.0,91439.0,0.04407]
[1763472312759,0.00219803,91440.0,91439.0,0.04407]
[1763472316874,0.04563803,91440.0,91439.0,0.04407]
[1763472317163,0.02384803,91440.0,91439.0,0.04407]
[1763472317368,0.04563803,91440.0,91439.0,0.04407]
[1763472318078,0.04563803,91440.0,91438.0,0.00016404]
[1763472318079,0.00928,91424.0,91384.0,0.02305]
[1763472318269,0.00219803,91390.0,91389.0,0.04407]
[1763472318856,0.02921246,91390.0,91389.0,0.04407]
[1763472319671,0.02701443,91390.0,91389.0,0.04407]
[1763472319867,0.00016404,91399.0,91398.0,0.04407]
[1763472320170,0.0392079,91412.0,91411.0,0.04315]
[1763472320465,0.0392079,91416.0,91415.0,0.04315]
[1763472320671,0.19287597,91420.0,91419.0,0.04315]
[1763472321362,0.00219803,91420.0,91419.0,0.04315]
[1763472328171,0.04123056,91420.0,91419.0,0.04315]
[1763472328759,0.00219803,91420.0,91419.0,0.04315]
[1763472329165,0.04123056,91420.0,91419.0,0.04315]
[1763472329471,0.00219803,91420.0,91419.0,0.04315]
[1763472332065,0.03073698,91420.0,91419.0,0.04315]
[1763472332574,0.14009699,91420.0,91410.0,0.01307414]
[1763472332782,0.05888217,91411.0,91384.0,0.05789]
[1763472333070,0.00219803,91390.0,91384.0,0.03627]
[1763472333270,0.06753904,91389.0,91384.0,0.03627]
[1763472333473,0.03900009,91387.0,91384.0,0.03627]
[1763472333676,0.02853895,91386.0,91384.0,0.05789]
[1763472333874,0.02853895,91385.0,91384.0,0.03627]
[1763472334078,0.11679907,91385.0,91384.0,0.05789]
[1763472334275,0.11679907,91385.0,91384.0,0.05989]
[1763472334475,0.06750288,91385.0,91384.0,0.06089]
[1763472334778,0.07834613,91385.0,91384.0,0.06089]
[1763472335168,0.0393822,91385.0,91384.0,0.05989]
[1763472335484,0.02853895,91385.0,91384.0,0.06089]
[1763472335686,0.03896226,91385.0,91384.0,0.05889]
[1763472335875,0.03896226,91385.0,91384.0,0.06089]
[1763472336178,0.02853895,91385.0,91384.0,0.06089]
[1763472336382,0.02853895,91385.0,91384.0,0.05989]
[1763472336772,0.03896226,91391.0,91390.0,0.04479]
[1763472336972,0.05726226,91391.0,91390.0,0.04551842]
[1763472337172,0.0183,91391.0,91390.0,0.04551842]
[1763472337374,0.0183,91391.0,91390.0,0.00072842]
[1763472337975,0.0183,91391.0,91390.0,0.04551842]
[1763472338379,0.0183,91391.0,91390.0,0.04651842]
[1763472338672,0.07674213,91391.0,91390.0,0.04651842]
[1763472338877,0.05844213,91391.0,91390.0,0.04751842]
[1763472339075,0.03913015,91394.0,91393.0,0.04479]
[1763472339273,0.00016414,91394.0,91393.0,0.04479]
[1763472339477,0.05844213,91403.0,91402.0,0.04479]
[1763472339673,0.05844213,91407.0,91405.0,0.04479]
[1763472339879,0.00219803,91410.0,91409.0,0.04479]
[1763472346176,0.06064016,91410.0,91409.0,0.04479]
[1763472346888,0.02564016,91415.0,91414.0,0.04479]
[1763472347186,0.00016414,91419.0,91418.0,0.04479]
[1763472347375,0.00016414,91419.0,91418.0,0.03054476]
[1763472348575,0.00116414,91419.0,91418.0,0.03054476]
[1763472348975,0.02883464,91419.0,91418.0,0.03054476]
[1763472350480,0.02983464,91419.0,91418.0,0.03054476]
[1763472351186,0.01297,91404.0,91400.0,0.04495414]
[1763472351490,0.02715594,91403.0,91402.0,0.04479]
[1763472353484,0.00016414,91419.0,91418.0,0.04479]
[1763472354777,0.00116414,91419.0,91418.0,0.04479]
[1763472355089,0.00216414,91419.0,91418.0,0.04479]
[1763472355279,0.07832598,91433.0,91432.0,0.0104]
[1763472355477,0.07832598,91433.0,91409.0,0.1095184]
[1763472355478,0.07832598,91434.0,91433.0,0.0104]
[1763472355682,0.07832598,91435.0,91434.0,0.0104]
[1763472355879,0.0233,91435.0,91434.0,0.0104]
[1763472356085,0.04629,91435.0,91434.0,0.0104]
[1763472356686,0.05926,91431.0,91430.0,0.01259803]
[1763472357091,0.04314,91426.0,91425.0,0.00536414]
[1763472357289,0.04314,91426.0,91425.0,0.01056414]
[1763472358088,0.12146598,91437.0,91436.0,0.0104]
[1763472358286,0.04314,91437.0,91436.0,0.0104]
[1763472359194,0.04414,91437.0,91436.0,0.0104]
[1763472359392,0.04514,91437.0,91436.0,0.0104]
[1763472360589,0.04314,91426.0,91425.0,0.00016414]
[1763472360889,0.04314,91426.0,91425.0,0.00536414]
[1763472361086,0.04314,91426.0,91425.0,0.01056414]
[1763472361392,0.04314,91426.0,91425.0,0.00016414]
[1763472361789,0.04314,91426.0,91425.0,0.01056414]
[1763472362397,0.03497,91431.0,91430.0,0.0104]
[1763472362694,0.05611,91440.0,91439.0,0.0104]
[1763472363596,0.04314,91426.0,91425.0,0.01056414]
[1763472365394,0.06974255,91426.0,91425.0,0.01056414]
[1763472366389,0.06974255,91426.0,91425.0,0.01156414]
[1763472367789,0.04873255,91426.0,91425.0,0.01156414]
[1763472368094,0.04873255,91426.0,91425.0,0.01056414]
[1763472368689,0.06974255,91426.0,91425.0,0.01056414]
[1763472370493,0.04873255,91426.0,91425.0,0.01056414]
[1763472371702,0.06974255,91426.0,91425.0,0.01056414]
[1763472372398,0.02660255,91426.0,91425.0,0.01056414]
[1763472374300,0.06974255,91426.0,91425.0,0.01056414]
[1763472378494,0.06974255,91426.0,91425.0,0.00016414]
[1763472379501,0.06974255,91426.0,91425.0,0.01056414]
[1763472379708,0.10875559,91426.0,91425.0,0.01056414]
[1763472380303,0.10875559,91426.0,91425.0,0.00016414]
[1763472380499,0.10875559,91426.0,91425.0,0.01056414]
[1763472381213,0.06974255,91426.0,91425.0,0.01056414]
[1763472381900,0.06974255,91426.0,91425.0,0.00016414]
[1763472382207,0.06974255,91426.0,91425.0,0.01056414]
[1763472382608,0.06565334,91426.0,91425.0,0.01056414]
[1763472382813,0.07257255,91426.0,91425.0,0.01056414]
[1763472383002,0.02660255,91426.0,91425.0,0.01056414]
[1763472383304,0.07257255,91426.0,91425.0,0.01056414]
[1763472384216,0.07257255,91426.0,91425.0,0.00016414]
[1763472387808,0.02297,91403.0,91402.0,0.27476]
[1763472388016,0.05615,91408.0,91407.0,0.0104]
[1763472388316,0.021,91416.0,91415.0,0.0104]
[1763472388516,0.021,91416.0,91410.0,0.00219803]
[1763472388517,0.04273,91423.0,91422.0,0.0104]
[1763472388719,0.0690266,91423.0,91422.0,0.0104]
[1763472389516,0.04273,91421.0,91420.0,0.00219803]
[1763472389713,0.0690266,91421.0,91420.0,0.01259803]
[1763472389919,0.0690266,91421.0,91420.0,0.00219803]
[1763472390218,0.0690266,91421.0,91420.0,0.00739803]
[1763472390420,0.0690266,91421.0,91420.0,0.00219803]
[1763472392516,0.10807739,91421.0,91420.0,0.00219803]
[1763472393318,0.0690266,91421.0,91420.0,0.00219803]
[1763472393722,0.10805157,91421.0,91420.0,0.00219803]
[1763472394220,0.0690266,91421.0,91420.0,0.00219803]
[1763472395022,0.0472966,91421.0,91420.0,0.01259803]
[1763472395217,0.0262966,91421.0,91420.0,0.01259803]
[1763472395418,0.0472966,91421.0,91420.0,0.01259803]
[1763472396019,0.0690266,91421.0,91420.0,0.00219803]
[1763472396723,0.0690266,91421.0,91420.0,0.01259803]
[1763472397620,0.04273,91414.0,91413.0,0.00016404]
[1763472397826,0.0690266,91414.0,91413.0,0.00536404]
[1763472398728,0.0690266,91414.0,91413.0,0.01156404]
[1763472398927,0.0680266,91414.0,91413.0,0.01156404]
[1763472399331,0.0680266,91414.0,91413.0,0.01056404]
[1763472400429,0.0680266,91414.0,91413.0,0.01156404]
[1763472402432,0.0680266,91414.0,91413.0,0.01056404]
[1763472403828,0.0680266,91414.0,91413.0,0.00536404]
[1763472404832,0.0680266,91414.0,91413.0,0.00016404]
[1763472405935,0.0680266,91414.0,91379.0,0.09793688]
[1763472405936,0.04273,91389.0,91388.0,0.09097118]
[1763472406227,0.03092961,91389.0,91388.0,0.2766]
[1763472407136,0.03092961,91389.0,91388.0,0.2776]
[1763472407934,0.00016413,91398.0,91397.0,0.04446]
[1763472407935,0.04289413,91398.0,91397.0,0.04446]
[1763472408436,0.06905344,91398.0,91397.0,0.04446]
[1763472408933,0.06905344,91398.0,91397.0,0.02168]
[1763472409137,0.06905344,91398.0,91397.0,0.02268]
[1763472409735,0.06905344,91398.0,91397.0,0.04646]
[1763472410534,0.06905344,91398.0,91397.0,0.04546]
[1763472411737,0.06905344,91398.0,91397.0,0.04446]
[1763472411939,0.04273,91389.0,91388.0,0.30866]
[1763472412634,0.04273,91389.0,91388.0,0.04446]
[1763472413029,0.0262554,91389.0,91388.0,0.04546]
[1763472413236,0.04289413,91398.0,91397.0,0.04446]
[1763472413441,0.06914389,91398.0,91397.0,0.04446]
[1763472414438,0.04273,91389.0,91388.0,0.04646]
[1763472414838,0.04273,91389.0,91388.0,0.04546]
[1763472415935,0.04273,91389.0,91388.0,0.02268]
[1763472416635,0.04273,91389.0,91388.0,0.04546]
[1763472416831,0.04273,91389.0,91388.0,0.04646]
[1763472417829,0.04273,91389.0,91388.0,0.002]
[1763472418027,0.04273,91389.0,91388.0,0.0232]
[1763472418639,0.04273,91389.0,91388.0,0.002]
[1763472420237,0.04273,91389.0,91388.0,0.0232]
[1763472420938,0.04273,91389.0,91388.0,0.002]
[1763472421143,0.06897732,91389.0,91388.0,0.002]
[1763472421339,0.06897732,91389.0,91367.0,0.0203]
[1763472421340,0.04466,91368.0,91367.0,0.0415]
[1763472421543,0.04466,91368.0,91367.0,0.0203]
[1763472422335,0.04466,91368.0,91367.0,0.0213]
[1763472422841,0.04466,91368.0,91367.0,0.06372]
[1763472423141,0.04466,91368.0,91367.0,0.06572]
[1763472424240,0.04466,91368.0,91357.0,0.0105]
[1763472424241,0.05591,91357.0,91356.0,0.00013613]
[1763472424541,0.05591,91357.0,91356.0,0.04255613]
[1763472424542,0.04466,91357.0,91356.0,0.04255613]
[1763472424841,0.04466,91364.0,91363.0,0.04242]
[1763472426436,0.04466,91361.0,91360.0,0.02339803]
[1763472426643,0.04266,91361.0,91360.0,0.04461803]
[1763472427728,0.04266,91361.0,91360.0,0.04661803]
[1763472430042,0.04266,91361.0,91360.0,0.05911803]
[1763472430742,0.04466,91371.0,91370.0,0.04242]
[1763472430935,0.04466,91371.0,91370.0,0.04461803]
[1763472431542,0.04466,91361.0,91360.0,0.04442]
[1763472431744,0.04466,91361.0,91360.0,0.05911803]
[1763472432047,0.00016413,91377.0,91376.0,0.04242]
[1763472432048,0.04482413,91377.0,91376.0,0.04242]
[1763472432350,0.00016413,91377.0,91376.0,0.05574]
[1763472432549,0.0136,91400.0,91380.0,0.00219803]
[1763472432740,0.0136,91400.0,91398.0,0.04242]
[1763472432741,0.07082812,91399.0,91398.0,0.04242]
[1763472434243,0.04466,91391.0,91390.0,0.04242]
[1763472434550,0.04466,91391.0,91390.0,0.04461803]
[1763472437746,0.04466,91391.0,91390.0,0.00219803]
[1763472437948,0.04466,91391.0,91390.0,0.04461803]
[1763472439649,0.04466,91391.0,91390.0,0.02339803]
[1763472439844,0.04466,91391.0,91390.0,0.04461803]
[1763472441456,0.04314,91400.0,91399.0,0.04373]
[1763472441650,0.02622824,91400.0,91399.0,0.04373]
[1763472441953,0.04341351,91406.0,91405.0,0.04373]
[1763472442252,0.06963873,91406.0,91405.0,0.04373]
[1763472442952,0.02649873,91406.0,91405.0,0.04373]
[1763472443148,0.00027351,91406.0,91405.0,0.04373]
[1763472443543,0.00127351,91406.0,91405.0,0.04373]
[1763472443739,0.0274959,91406.0,91405.0,0.04373]
[1763472445256,0.0706359,91406.0,91405.0,0.04373]
[1763472447648,0.04393,91390.0,91389.0,0.02231413]
[1763472447946,0.04393,91390.0,91389.0,0.04466413]
[1763472461168,0.07022182,91390.0,91389.0,0.04466413]
[1763472461369,0.07023661,91390.0,91389.0,0.04466413]
[1763472465371,0.07023661,91390.0,91389.0,0.02231413]
[1763472467175,0.07023661,91390.0,91389.0,0.04466413]
[1763472469962,0.07023661,91390.0,91389.0,0.00016413]
[1763472472173,0.10926158,91390.0,91389.0,0.00016413]
[1763472472371,0.07023661,91390.0,91389.0,0.00016413]
[1763472473575,0.07023661,91390.0,91389.0,0.02231413]
[1763472474480,0.07023661,91390.0,91389.0,0.00016413]
[1763472474675,0.07023661,91390.0,91389.0,0.04466413]
[1763472477464,0.02630661,91390.0,91389.0,0.04466413]
[1763472477671,0.04750661,91390.0,91389.0,0.04466413]
[1763472477879,0.06940661,91390.0,91389.0,0.04466413]
[1763472478979,0.02630661,91390.0,91389.0,0.04466413]
[1763472479568,0.04750661,91390.0,91389.0,0.04466413]
[1763472480884,0.02630661,91390.0,91389.0,0.04466413]
[1763472481672,0.0212,91400.0,91398.0,0.00664]
[1763472481882,0.0431,91400.0,91399.0,0.04495]
[1763472482080,0.06939002,91400.0,91399.0,0.04495]
[1763472483484,0.02629002,91400.0,91399.0,0.04495]
[1763472483881,0.00027351,91406.0,91405.0,0.04495]
[1763472484680,0.04337351,91406.0,91405.0,0.30915]
[1763472484881,0.04337351,91406.0,91405.0,0.04495]
[1763472485180,0.02247351,91406.0,91405.0,0.04495]
[1763472486680,0.00127351,91406.0,91405.0,0.04495]
[1763472486882,0.02247351,91406.0,91405.0,0.04495]
[1763472487084,0.00127351,91406.0,91405.0,0.04495]
[1763472487479,0.02247351,91406.0,91405.0,0.04495]
[1763472487681,0.04437351,91406.0,91405.0,0.02168]
[1763472487978,0.0431,91401.0,91400.0,0.00219803]
[1763472488183,0.0431,91401.0,91400.0,0.02387803]
[1763472488376,0.0431,91401.0,91400.0,0.04714803]
[1763472489480,0.0431,91401.0,91400.0,0.00219803]
[1763472490280,0.05498,91392.0,91391.0,0.17987]
[1763472490479,0.05498,91392.0,91391.0,0.04495]
[1763472490680,0.05498,91392.0,91368.0,0.01288]
[1763472490681,0.0431,91390.0,91368.0,0.01288]
[1763472490872,0.0431,91390.0,91372.0,0.24328]
[1763472491787,0.0431,91390.0,91389.0,0.02184413]
[1763472491975,0.0431,91390.0,91389.0,0.04511413]
[1763472493285,0.0431,91399.0,91398.0,0.04495]
[1763472494383,0.0431,91399.0,91398.0,0.02168]
[1763472494582,0.0431,91390.0,91389.0,0.04511413]
[1763472495880,0.06891987,91390.0,91389.0,0.04511413]
[1763472498786,0.06891987,91390.0,91389.0,0.00016413]
[1763472501085,0.06891987,91390.0,91389.0,0.04511413]
[1763472501487,0.06891987,91390.0,91389.0,0.02184413]
[1763472502089,0.06891987,91390.0,91389.0,0.04511413]
[1763472502288,0.06891987,91390.0,91389.0,0.00016413]
[1763472503090,0.06891987,91390.0,91362.0,0.1095747]
[1763472503393,0.07136987,91389.0,91388.0,0.04622]
[1763472503789,0.07136987,91389.0,91380.0,0.00219803]
[1763472503790,0.04853987,91389.0,91380.0,0.00219803]
[1763472503990,0.04555,91381.0,91380.0,0.04841803]
[1763472506394,0.05869,91392.0,91391.0,0.04622]
[1763472506695,0.08435116,91392.0,91391.0,0.04622]
[1763472507197,0.08435116,91392.0,91390.0,0.02387803]
[1763472507198,0.04443,91391.0,91390.0,0.02387803]
[1763472507382,0.07009116,91391.0,91390.0,0.04526803]
[1763472508487,0.00016413,91394.0,91393.0,0.04307]
[1763472508799,0.04459413,91394.0,91393.0,0.04307]
[1763472509296,0.04459413,91394.0,91390.0,0.00219803]
[1763472509297,0.04443,91391.0,91390.0,0.02387803]
[1763472509693,0.04443,91391.0,91390.0,0.00219803]
[1763472511303,0.04443,91377.0,91376.0,0.04307]
[1763472512396,0.02117,91377.0,91376.0,0.05774]
[1763472512697,0.02117,91384.0,91383.0,0.04307]
[1763472513100,0.05825,91392.0,91391.0,0.04307]
[1763472513291,0.08391335,91392.0,91391.0,0.04307]
[1763472513491,0.07009335,91392.0,91391.0,0.04307]
[1763472513893,0.08391335,91392.0,91391.0,0.04307]
[1763472514500,0.04443,91391.0,91390.0,0.00219803]
[1763472514694,0.04443,91377.0,91376.0,0.05674]
[1763472514901,0.04443,91377.0,91376.0,0.04307]
[1763472515906,0.04443,91392.0,91391.0,0.04307]
[1763472516100,0.07010592,91392.0,91391.0,0.04307]
[1763472517690,0.02567592,91392.0,91391.0,0.04307]
[1763472517891,0.00016413,91394.0,91391.0,0.04307]
[1763472518101,0.00016413,91394.0,91393.0,0.04307]
[1763472518295,0.02133413,91394.0,91393.0,0.04307]
[1763472518694,0.07029096,91394.0,91393.0,0.04307]
[1763472518897,0.04443,91391.0,91390.0,0.02387803]
[1763472519097,0.04443,91391.0,91390.0,0.04526803]
[1763472519910,0.04443,91391.0,91390.0,0.02387803]
[1763472520108,0.0701243,91391.0,91390.0,0.02387803]
[1763472520308,0.0701243,91391.0,91390.0,0.04526803]
[1763472521908,0.0256943,91391.0,91390.0,0.04526803]
[1763472522106,0.02117,91391.0,91390.0,0.00219803]
[1763472522405,0.04459413,91394.0,91393.0,0.04307]
[1763472522706,0.07028878,91394.0,91393.0,0.04307]
[1763472530422,0.07028878,91394.0,91390.0,0.00219803]
[1763472530423,0.04443,91391.0,91390.0,0.00219803]
[1763472530623,0.04443,91391.0,91390.0,0.02387803]
[1763472530819,0.07006574,91391.0,91390.0,0.02387803]
[1763472531124,0.07006574,91391.0,91390.0,0.04526803]
[1763472531921,0.02563574,91391.0,91390.0,0.04526803]
[1763472532224,0.04459413,91394.0,91393.0,0.04307]
[1763472532426,0.07022959,91394.0,91393.0,0.04307]
[1763472536529,0.04443,91391.0,91390.0,0.00219803]
[1763472536721,0.07006546,91391.0,91390.0,0.00219803]
[1763472536922,0.07006546,91391.0,91390.0,0.02387803]
[1763472537130,0.07006546,91391.0,91390.0,0.04526803]
[1763472539833,0.07006546,91391.0,91390.0,0.00219803]
[1763472540032,0.07006546,91391.0,91390.0,0.02491803]
[1763472540329,0.07006546,91391.0,91368.0,0.08540118]
[1763472540531,0.04458,91381.0,91380.0,0.02491803]
[1763472540827,0.07021764,91381.0,91360.0,0.07857118]
[1763472541134,0.05806,91371.0,91370.0,0.02491803]
[1763472541427,0.05806,91371.0,91370.0,0.04686803]
[1763472541934,0.04458,91371.0,91370.0,0.04686803]
[1763472542326,0.04458,91371.0,91370.0,0.04786803]
[1763472542529,0.04458,91378.0,91371.0,0.01329]
[1763472542835,0.04458,91378.0,91377.0,0.04467]
[1763472543530,0.08393021,91378.0,91377.0,0.02272]
[1763472543735,0.05831,91371.0,91370.0,0.04567]
[1763472544031,0.05831,91371.0,91370.0,0.04786803]
[1763472544428,0.05831,91371.0,91370.0,0.04686803]
[1763472544629,0.05731,91371.0,91370.0,0.04686803]
[1763472545222,0.05731,91371.0,91370.0,0.04786803]
[1763472545532,0.04358,91371.0,91370.0,0.04786803]
[1763472547329,0.04358,91371.0,91370.0,0.00319803]
[1763472547330,0.05731,91371.0,91370.0,0.00319803]
[1763472547526,0.0829181,91371.0,91370.0,0.00319803]
[1763472552625,0.0557,91357.0,91356.0,0.00013613]
[1763472552835,0.0557,91357.0,91356.0,0.02285613]
[1763472553033,0.0557,91357.0,91356.0,0.04480613]
[1763472554332,0.04458,91357.0,91356.0,0.04480613]
[1763472554827,0.02143,91357.0,91356.0,0.04480613]
[1763472555436,0.04458,91357.0,91356.0,0.04480613]
[1763472556633,0.02143,91357.0,91356.0,0.04480613]
[1763472557633,0.04458,91357.0,91356.0,0.04480613]
[1763472557829,0.05384,91357.0,91356.0,0.04480613]
[1763472558822,0.05384,91357.0,91356.0,0.00013613]
[1763472561434,0.05384,91357.0,91356.0,0.02285613]
[1763472563031,0.05384,91357.0,91356.0,0.00013613]
[1763472563437,0.05384,91357.0,91356.0,0.02335613]
[1763472564135,0.05384,91357.0,91356.0,0.00013613]
[1763472567138,0.07939158,91357.0,91356.0,0.00013613]
[1763472568233,0.04291,91344.0,91343.0,0.26424]
[1763472568440,0.04291,91344.0,91343.0,0.30797]
[1763472568638,0.0217,91353.0,91352.0,0.04373]
[1763472568942,0.05217,91364.0,91363.0,0.04373]
[1763472569137,0.07772468,91364.0,91363.0,0.04373]
[1763472569443,0.07785403,91364.0,91363.0,0.04373]
[1763472569742,0.07785403,91364.0,91363.0,0.02141]
[1763472570443,0.04291,91361.0,91360.0,0.00219803]
[1763472570642,0.06846468,91361.0,91360.0,0.00219803]
[1763472573537,0.05647,91344.0,91343.0,0.30797]
[1763472575645,0.0565954,91344.0,91343.0,0.04373]
[1763472576339,0.0218254,91344.0,91343.0,0.05164]